bitfinex/quotes_SOLUSD_20240603
["timestamp","ask_amount","ask_price","bid_price","bid_amount"]
[1717412954386,7.06,165.18,165.17,2.2401]
[1717412956557,7.06,165.18,165.15,36.31]
[1717412956867,7.06,165.16,165.15,38.5503]
[1717412957565,7.06,165.16,165.15,2.2403]
[1717412958575,9.2997,165.2,165.15,2.2403]
[1717412958576,2.2397,165.2,165.15,2.2403]
[1717412958794,7.06,165.17,165.15,2.2403]
[1717412959796,2.2397,165.2,165.15,2.2403]
[1717412959997,7.06,165.17,165.15,2.2403]
[1717412960695,7.06,165.17,165.14,83.5504]
[1717412960873,7.06,165.15,165.14,38.5504]
[1717412961073,7.06,165.15,165.11,15.1787]
[1717412961074,7.06,165.15,165.12,36.31]
[1717412961277,7.06,165.13,165.08,2.2413]
[1717412961480,7.06,165.09,165.05,16.0099]
[1717412961805,15.6805,165.18,165.09,2.2411]
[1717412961806,7.06,165.11,165.09,2.2411]
[1717412962008,7.06,165.12,165.11,2.2407]
[1717412962808,7.06,165.12,165.1,2.241]
[1717412963010,7.06,165.12,165.09,2.2411]
[1717412963173,2.2405,165.14,165.09,2.2411]
[1717412963174,7.06,165.11,165.09,2.2411]
[1717412963576,7.06,165.1,165.09,2.2411]
[1717412964195,7.06,165.11,165.09,2.2411]
[1717412964501,7.06,165.11,165.1,2.241]
[1717412966304,2.2404,165.15,165.1,2.241]
[1717412966496,7.06,165.11,165.1,2.241]
[1717412966678,7.06,165.11,165.09,83.5511]
[1717412967014,7.06,165.1,165.09,83.5511]
[1717412968493,7.06,165.11,165.1,2.241]
[1717412974598,6.1733,165.19,165.09,81.31]
[1717412974793,7.06,165.15,165.14,2.2404]
[1717412975010,7.06,165.15,165.13,2.2406]
[1717412975489,7.06,165.14,165.13,2.2406]
[1717412978586,7.06,165.15,165.13,2.2406]
[1717412979808,2.2399,165.18,165.13,2.2406]
[1717412980289,7.06,165.15,165.13,2.2406]
[1717412980487,7.06,165.15,165.12,45.0]
[1717412980883,2.24,165.18,165.13,2.2406]
[1717412981083,7.06,165.15,165.13,2.2406]
[1717412981699,2.24,165.18,165.13,2.2406]
[1717412981882,7.06,165.16,165.13,2.2406]
[1717412982827,2.2397,165.2,165.15,2.2403]
[1717412983116,7.06,165.18,165.16,2.2402]
[1717412983491,7.06,165.18,165.13,36.31]
[1717412983683,7.06,165.16,165.13,36.31]
[1717412984007,7.06,165.16,165.13,38.5505]
[1717412984312,7.06,165.17,165.13,38.5505]
[1717412984504,4.4791,165.21,165.14,2.2405]
[1717412984693,7.06,165.18,165.14,2.2405]
[1717412986007,7.06,165.17,165.14,2.2405]
[1717412986306,7.06,165.17,165.13,38.5506]
[1717412986506,7.06,165.17,165.14,83.5505]
[1717412989319,2.2398,165.19,165.14,83.5505]
[1717412989521,2.2396,165.21,165.14,103.8516]
[1717412989698,2.2396,165.21,165.16,2.2401]
[1717412989898,7.06,165.2,165.16,2.2401]
[1717412990515,7.06,165.19,165.16,2.2401]
[1717412991403,7.06,165.19,165.16,54.0317]
[1717412991597,2.2396,165.21,165.18,36.31]
[1717412991810,7.06,165.2,165.18,36.31]
[1717412993811,7.06,165.19,165.15,2.2402]
[1717412994012,7.06,165.18,165.15,20.0]
[1717412994301,7.06,165.18,165.15,22.2403]
[1717412994705,7.06,165.18,165.15,2.2403]
[1717412995020,7.06,165.18,165.15,22.2403]
[1717412995518,7.06,165.18,165.15,2.2403]
[1717412995699,7.06,165.18,165.15,47.2403]
[1717412996119,7.06,165.18,165.16,2.2402]
[1717412996500,2.2398,165.2,165.16,2.2402]
[1717412996700,7.06,165.18,165.16,2.2402]
[1717412996907,2.2396,165.21,165.16,2.2402]
[1717412997227,7.06,165.18,165.16,47.2402]
[1717412997520,2.2396,165.21,165.16,47.2402]
[1717412997816,7.06,165.18,165.17,2.2401]
[1717412998528,7.06,165.18,165.16,83.5502]
[1717413000731,7.06,165.18,165.17,2.2401]
[1717413001523,2.2394,165.22,165.17,2.2401]
[1717413001724,7.06,165.18,165.17,2.2401]
[1717413001932,7.06,165.18,165.16,2.2402]
[1717413002234,7.06,165.17,165.16,2.2402]
[1717413002597,7.06,165.17,165.13,56.31]
[1717413002802,7.06,165.17,165.14,45.0]
[1717413003007,7.06,165.17,165.15,2.2403]
[1717413003950,7.06,165.16,165.14,47.2404]
[1717413005531,7.06,165.17,165.15,2.2403]
[1717413007041,7.06,165.16,165.14,2.2404]
[1717413007250,7.06,165.15,165.14,2.2404]
[1717413008047,7.06,165.15,165.12,2.2407]
[1717413008217,8.3739,165.18,165.1,56.31]
[1717413008420,8.3739,165.18,165.14,2.2405]
[1717413008421,6.1339,165.18,165.14,2.2405]
[1717413008621,7.06,165.15,165.14,2.2405]
[1717413008841,2.2399,165.19,165.14,2.2405]
[1717413009225,7.06,165.16,165.14,2.2405]
[1717413009427,2.2399,165.19,165.14,2.2405]
[1717413009641,7.06,165.16,165.14,2.2405]
[1717413010257,2.2399,165.19,165.14,2.2405]
[1717413010563,7.06,165.17,165.14,2.2405]
[1717413012217,7.06,165.16,165.14,2.2405]
[1717413014050,7.06,165.16,165.13,47.2406]
[1717413015245,7.06,165.15,165.13,2.2406]
[1717413015626,7.06,165.14,165.13,2.2406]
[1717413017456,7.06,165.14,165.12,2.2407]
[1717413017966,7.06,165.14,165.11,2.2408]
[1717413018148,7.06,165.13,165.12,2.2407]
[1717413018350,7.06,165.16,165.13,2.2405]
[1717413018652,7.06,165.16,165.11,36.31]
[1717413018821,7.06,165.16,165.13,2.2405]
[1717413019027,7.06,165.15,165.13,2.2405]
[1717413019529,7.06,165.15,165.1,36.31]
[1717413019734,7.06,165.15,165.12,2.2406]
[1717413019954,7.06,165.14,165.12,2.2406]
[1717413020152,7.06,165.14,165.11,2.2408]
[1717413020349,2.2402,165.16,165.11,2.2408]
[1717413020350,7.06,165.13,165.11,2.2408]
[1717413020533,7.06,165.12,165.11,2.2408]
[1717413020727,7.06,165.13,165.11,2.2408]
[1717413021772,7.06,165.13,165.1,38.551]
[1717413021934,7.06,165.12,165.1,38.551]
[1717413022334,7.06,165.12,165.1,2.241]
[1717413024642,2.2404,165.15,165.1,2.241]
[1717413024845,7.06,165.11,165.09,2.2411]
[1717413025069,7.06,165.1,165.09,2.2411]
[1717413025251,7.06,165.1,165.08,2.2412]
[1717413025446,2.2405,165.14,165.09,2.2411]
[1717413025653,7.06,165.11,165.07,56.31]
[1717413026038,2.2404,165.15,165.1,2.241]
[1717413026463,7.06,165.11,165.1,2.241]
[1717413026633,45.0,165.19,165.07,56.31]
[1717413026831,28.24,165.2,165.09,40.7922]
[1717413027050,4.4791,165.21,165.1,81.31]
[1717413027256,7.06,165.14,165.13,2.2406]
[1717413027457,7.06,165.15,165.12,2.2407]
[1717413027759,7.06,165.14,165.12,2.2407]
[1717413028464,2.2401,165.17,165.12,2.2407]
[1717413028651,28.24,165.2,165.1,81.31]
[1717413028861,7.06,165.12,165.1,83.551]
[1717413029366,2.2403,165.15,165.11,2.2409]
[1717413029551,7.06,165.12,165.1,2.241]
[1717413029746,7.06,165.11,165.1,2.241]
[1717413030866,7.06,165.11,165.08,56.31]
[1717413030867,7.06,165.11,165.09,2.2411]
[1717413033175,2.2404,165.15,165.1,2.241]
[1717413033379,7.06,165.12,165.1,2.241]
[1717413033582,7.06,165.13,165.1,2.241]
[1717413035260,7.06,165.13,165.09,2.2411]
[1717413035456,2.2404,165.15,165.1,2.241]
[1717413035656,2.2404,165.15,165.1,47.241]
[1717413035887,2.2401,165.17,165.1,81.31]
[1717413036074,2.24,165.18,165.13,2.2406]
[1717413036264,7.06,165.15,165.13,2.2406]
[1717413036585,7.06,165.14,165.12,2.2407]
[1717413036786,2.2402,165.17,165.12,2.2407]
[1717413037028,7.06,165.14,165.12,2.2407]
[1717413037285,2.2402,165.17,165.12,2.2407]
[1717413037784,7.06,165.15,165.12,2.2407]
[1717413038371,7.06,165.15,165.11,83.5508]
[1717413039195,7.06,165.14,165.11,83.5508]
[1717413041388,7.06,165.13,165.08,21.9174]
[1717413041688,7.06,165.09,165.04,21.5465]
[1717413041885,7.06,165.09,165.06,2.2415]
[1717413042981,7.06,165.08,165.06,2.2415]
[1717413044403,7.06,165.08,165.05,81.31]
[1717413044794,7.06,165.12,165.04,2.2418]
[1717413044795,7.06,165.07,165.04,2.2418]
[1717413044989,7.06,165.07,165.05,2.2417]
[1717413045579,7.06,165.08,165.07,2.2414]
[1717413045877,7.06,165.08,165.06,2.2415]
[1717413047694,7.06,165.08,165.07,2.2414]
[1717413051287,7.06,165.08,165.02,36.31]
[1717413051501,7.06,165.06,165.04,2.2417]
[1717413051812,7.06,165.07,165.05,2.2417]
[1717413052392,7.06,165.07,165.06,2.2416]
[1717413052593,7.06,165.08,165.06,2.2416]
[1717413053801,7.06,165.08,165.05,2.2416]
[1717413054008,7.06,165.07,165.05,2.2416]
[1717413056213,7.06,165.06,165.05,2.2416]
[1717413056711,7.06,165.06,165.03,20.0]
[1717413056894,7.06,165.05,165.02,20.0]
[1717413057101,7.06,165.05,165.03,45.0]
[1717413057816,7.06,165.05,165.04,2.2418]
[1717413058416,7.06,165.05,165.03,2.2419]
[1717413058597,7.06,165.04,165.03,2.2419]
[1717413061798,7.06,165.05,165.04,2.2417]
[1717413065934,7.06,165.06,165.05,2.2417]
[1717413066113,7.06,165.07,165.05,2.2417]
[1717413067622,7.06,165.07,165.01,63.37]
[1717413067623,2.241,165.11,165.06,2.2415]
[1717413068122,7.06,165.08,165.06,2.2415]
[1717413068301,2.2407,165.13,165.05,36.31]
[1717413068496,7.06,165.1,165.08,2.2413]
[1717413068721,7.06,165.1,165.07,2.2414]
[1717413069303,7.06,165.09,165.07,2.2414]
[1717413070209,2.2409,165.11,165.06,47.2415]
[1717413070408,7.06,165.08,165.06,47.2415]
[1717413070815,2.2409,165.11,165.06,47.2415]
[1717413071002,7.06,165.08,165.06,47.2415]
[1717413073033,7.06,165.08,165.06,2.2415]
[1717413073233,7.06,165.07,165.05,2.2417]
[1717413073534,2.2412,165.09,165.02,36.31]
[1717413073717,28.24,165.12,165.02,36.31]
[1717413073718,7.06,165.05,165.02,36.31]
[1717413074105,2.2412,165.09,165.04,2.2418]
[1717413074434,7.06,165.05,165.04,2.2418]
[1717413078341,7.06,165.07,165.05,2.2416]
[1717413078542,7.06,165.07,165.02,82.9578]
[1717413078746,2.2409,165.11,165.06,2.2416]
[1717413078920,7.06,165.08,165.06,2.2416]
[1717413080316,2.241,165.1,165.06,2.2416]
[1717413080547,7.06,165.08,165.06,2.2416]
[1717413082534,7.06,165.08,165.05,2.2416]
[1717413083447,2.241,165.1,165.05,2.2416]
[1717413083633,7.06,165.08,165.05,2.2416]
[1717413084443,2.241,165.1,165.05,2.2416]
[1717413084444,7.06,165.07,165.05,2.2416]
[1717413084649,7.06,165.08,165.05,2.2416]
[1717413084850,2.2409,165.11,165.06,2.2415]
[1717413085149,7.06,165.08,165.06,2.2415]
[1717413088246,2.2409,165.11,165.06,2.2415]
[1717413088551,7.06,165.08,165.06,2.2415]
[1717413088952,13.4435,165.14,165.06,2.2415]
[1717413089140,7.06,165.08,165.06,2.2415]
[1717413091445,13.4435,165.14,165.05,81.31]
[1717413091446,6.5622,165.16,165.05,81.31]
[1717413091651,7.06,165.11,165.07,57.8692]
[1717413091977,2.2407,165.13,165.09,2.2411]
[1717413092262,7.06,165.12,165.09,2.2411]
[1717413093453,7.06,165.12,165.1,2.241]
[1717413093829,7.06,165.13,165.1,2.241]
[1717413094653,7.06,165.12,165.1,2.241]
[1717413097853,2.2404,165.15,165.1,2.241]
[1717413098056,7.06,165.13,165.1,2.241]
[1717413101650,7.06,165.13,165.09,2.2411]
[1717413101852,7.06,165.12,165.09,2.2411]
[1717413102052,7.06,165.11,165.09,2.2411]
[1717413103346,7.06,165.1,165.09,2.2411]
[1717413104960,2.2404,165.15,165.1,2.241]
[1717413105467,7.06,165.12,165.1,2.241]
[1717413107367,7.06,165.11,165.09,2.2411]
[1717413110060,7.06,165.11,165.1,2.241]
[1717413111878,2.2404,165.15,165.1,2.241]
[1717413112077,7.06,165.11,165.1,2.241]
[1717413112377,7.06,165.13,165.11,2.2408]
[1717413112674,7.06,165.12,165.11,2.2408]
[1717413112973,7.06,165.13,165.11,2.2408]
[1717413113159,7.06,165.12,165.11,2.2408]
[1717413117566,2.2403,165.16,165.12,2.2407]
[1717413117769,4.46934389,165.18,165.1,36.31]
[1717413117981,7.06,165.16,165.12,36.31]
[1717413118279,7.06,165.17,165.14,2.2405]
[1717413119159,7.06,165.17,165.13,47.2406]
[1717413119355,7.06,165.16,165.13,47.2406]
[1717413119662,7.06,165.16,165.14,2.2403]
[1717413119871,2.2399,165.19,165.14,2.2403]
[1717413120069,2.2399,165.19,165.15,2.2403]
[1717413120383,7.06,165.17,165.15,2.2403]
[1717413121082,2.2399,165.19,165.15,2.2403]
[1717413121284,7.06,165.17,165.15,2.2403]
[1717413121487,7.06,165.17,165.14,2.2404]
[1717413121867,2.2399,165.19,165.14,2.2404]
[1717413122170,7.06,165.17,165.14,2.2404]
[1717413122474,7.06,165.18,165.15,2.2403]
[1717413123864,2.2398,165.19,165.15,2.2403]
[1717413124178,7.06,165.18,165.15,2.2403]
[1717413124793,7.06,165.18,165.14,2.2404]
[1717413125579,7.06,165.17,165.14,2.2404]
[1717413127878,7.06,165.16,165.13,83.5506]
[1717413129389,2.2399,165.18,165.13,83.5506]
[1717413129390,2.2399,165.18,165.14,2.2404]
[1717413129985,2.2398,165.19,165.14,2.2404]
[1717413130584,7.06,165.17,165.14,2.2404]
[1717413131604,2.2398,165.19,165.14,2.2404]
[1717413131778,7.06,165.17,165.14,2.2404]
[1717413132099,7.06,165.18,165.14,2.2404]
[1717413132476,7.06,165.16,165.14,2.2404]
[1717413132982,7.06,165.16,165.13,83.5506]
[1717413133494,2.2399,165.18,165.13,83.5506]
[1717413134185,2.2401,165.17,165.12,2.2407]
[1717413134378,2.2401,165.17,165.12,22.2407]
[1717413135194,2.24,165.18,165.13,2.2406]
[1717413137793,2.2402,165.16,165.12,2.2407]
[1717413138000,7.06,165.13,165.11,2.2408]
[1717413138383,2.2403,165.16,165.11,2.2408]
[1717413138589,2.2401,165.17,165.12,2.2407]
[1717413138800,7.06,165.14,165.12,2.2407]
[1717413138978,7.06,165.14,165.13,2.2406]
[1717413139184,2.24,165.18,165.13,2.2406]
[1717413139185,7.06,165.15,165.13,2.2406]
[1717413139408,7.06,165.15,165.14,2.2405]
[1717413139590,7.06,165.15,165.13,2.2406]
[1717413140191,2.2401,165.17,165.13,2.2406]
[1717413140386,7.06,165.15,165.13,2.2406]
[1717413141584,7.06,165.14,165.13,2.2406]
[1717413142201,7.06,165.14,165.12,36.31]
[1717413142202,7.06,165.14,165.12,38.5507]
[1717413142410,28.24,165.2,165.11,2.2408]
[1717413142411,7.06,165.13,165.11,2.2408]
[1717413142703,7.06,165.12,165.11,2.2408]
[1717413142887,7.06,165.13,165.11,2.2408]
[1717413145204,2.2401,165.17,165.12,2.2407]
[1717413145414,7.06,165.13,165.12,2.2407]
[1717413147428,2.2401,165.17,165.13,2.2405]
[1717413147597,7.06,165.15,165.13,2.2405]
[1717413148190,7.06,165.15,165.12,2.2407]
[1717413148606,7.06,165.14,165.12,2.2407]
[1717413148825,7.06,165.14,165.11,2.2408]
[1717413149016,7.06,165.13,165.1,38.551]
[1717413150521,7.06,165.13,165.11,2.2409]
[1717413153807,2.2401,165.17,165.11,36.31]
[1717413154004,7.06,165.15,165.11,36.31]
[1717413154403,7.06,165.14,165.11,36.31]
[1717413154803,7.06,165.14,165.12,2.2407]
[1717413155028,7.06,165.14,165.11,2.2408]
[1717413155322,2.24,165.18,165.12,2.2407]
[1717413155522,7.06,165.15,165.12,2.2407]
[1717413158896,7.06,165.15,165.11,38.5508]
[1717413159746,7.06,165.14,165.11,38.5508]
[1717413160540,7.06,165.14,165.11,36.31]
[1717413160703,7.06,165.13,165.11,36.31]
[1717413161629,7.06,165.13,165.11,38.5509]
[1717413162627,7.06,165.14,165.11,38.5509]
[1717413163402,2.2401,165.17,165.12,2.2407]
[1717413163622,2.24,165.18,165.12,83.5507]
[1717413163817,7.06,165.16,165.12,83.5507]
[1717413164114,2.24,165.18,165.13,2.2406]
[1717413164314,7.06,165.16,165.13,2.2406]
[1717413164497,7.06,165.16,165.12,83.5507]
[1717413164700,2.24,165.18,165.12,83.5507]
[1717413164902,2.2398,165.19,165.13,2.2406]
[1717413165102,7.06,165.18,165.14,36.31]
[1717413165406,7.06,165.17,165.14,36.31]
[1717413165631,7.06,165.16,165.14,36.31]
[1717413166702,2.2398,165.19,165.14,36.31]
[1717413166902,7.06,165.17,165.14,36.31]
[1717413167502,2.2396,165.21,165.15,2.2403]
[1717413167826,2.2396,165.21,165.16,36.31]
[1717413168008,7.06,165.19,165.16,36.31]
[1717413168209,7.06,165.19,165.17,2.24]
[1717413168412,7.06,165.19,165.16,38.5502]
[1717413169010,7.06,165.19,165.17,45.0]
[1717413174226,2.2393,165.23,165.18,38.5499]
[1717413174428,7.06,165.22,165.19,81.31]
[1717413174620,7.06,165.22,165.19,36.31]
[1717413175331,7.06,165.22,165.2,36.31]
[1717413176542,7.06,165.22,165.19,2.2398]
[1717413176832,7.06,165.22,165.2,36.31]
[1717413177741,7.06,165.22,165.19,2.2398]
[1717413178037,7.06,165.23,165.2,36.31]
[1717413178338,7.06,165.23,165.21,81.31]
[1717413178642,7.06,165.23,165.21,36.31]
[1717413179315,7.06,165.23,165.2,36.31]
[1717413179820,7.06,165.22,165.2,36.31]
[1717413180046,6.01715362,165.27,165.15,17.4504]
[1717413180047,7.06,165.21,165.18,2.2399]
[1717413180215,7.06,165.2,165.18,22.2399]
[1717413180823,2.2392,165.24,165.19,2.2398]
[1717413181131,7.06,165.2,165.19,2.2398]
[1717413181430,7.06,165.2,165.18,2.2399]
[1717413181746,7.06,165.21,165.18,2.2399]
[1717413182238,2.2392,165.24,165.17,101.31]
[1717413182239,2.2392,165.24,165.19,2.2397]
[1717413182420,7.06,165.22,165.19,2.2397]
[1717413182829,7.06,165.22,165.18,2.2399]
[1717413185535,7.06,165.22,165.19,2.2398]
[1717413185732,2.2392,165.24,165.19,2.2398]
[1717413185939,7.06,165.22,165.19,2.2398]
[1717413186413,7.06,165.22,165.18,2.2399]
[1717413187745,2.2392,165.24,165.19,38.5498]
[1717413187941,7.06,165.21,165.19,38.5498]
[1717413190161,7.06,165.21,165.18,38.5499]
[1717413190526,2.2393,165.23,165.18,38.5499]
[1717413190858,7.06,165.2,165.18,38.5499]
[1717413191226,2.2393,165.23,165.18,38.5499]
[1717413191560,7.06,165.2,165.18,38.5499]
[1717413193253,2.2393,165.23,165.18,38.5499]
[1717413193454,7.06,165.21,165.18,38.5499]
[1717413193934,7.06,165.2,165.18,38.5499]
[1717413196557,2.2392,165.24,165.18,38.5499]
[1717413196857,7.06,165.22,165.19,2.2398]
[1717413198554,7.06,165.22,165.19,83.5498]
[1717413200555,7.06,165.21,165.19,83.5498]
[1717413202540,7.06,165.2,165.16,2.2402]
[1717413202859,7.06,165.18,165.15,38.5503]
[1717413203049,2.2398,165.19,165.1,26.1135]
[1717413203253,7.06,165.16,165.13,2.2405]
[1717413203637,2.2398,165.19,165.13,2.2405]
[1717413203844,2.2398,165.19,165.14,2.2405]
[1717413203845,7.06,165.15,165.14,2.2405]
[1717413204049,7.06,165.15,165.13,22.2406]
[1717413204535,7.06,165.15,165.14,2.2405]
[1717413204777,2.2398,165.19,165.14,2.2405]
[1717413205871,7.06,165.15,165.09,36.31]
[1717413206150,7.06,165.11,165.1,2.241]
[1717413207166,7.06,165.12,165.1,2.241]
[1717413207458,7.06,165.12,165.09,36.31]
[1717413207459,7.06,165.12,165.09,38.5511]
[1717413207839,7.06,165.11,165.09,2.2411]
[1717413211448,2.2404,165.15,165.07,2.2414]
[1717413211449,7.06,165.1,165.07,2.2414]
[1717413211654,7.06,165.09,165.07,2.2414]
[1717413211862,2.2406,165.13,165.07,2.2414]
[1717413212041,7.06,165.09,165.07,2.2414]
[1717413212563,7.06,165.08,165.07,2.2414]
[1717413212756,7.06,165.08,165.05,2.2416]
[1717413212942,7.06,165.06,165.05,2.2416]
[1717413213846,7.06,165.06,165.04,38.5518]
[1717413214961,7.06,165.06,165.02,16.6125]
[1717413214962,7.06,165.06,165.03,38.552]
[1717413215163,7.06,165.04,165.03,2.242]
[1717413215548,7.06,165.04,165.02,22.2421]
[1717413216073,7.06,165.04,165.02,2.2421]
[1717413216378,7.06,165.03,165.02,2.2421]
[1717413216669,7.06,165.04,165.02,2.2421]
[1717413216859,7.06,165.04,165.03,2.242]
[1717413218166,2.2411,165.1,165.04,2.2418]
[1717413218467,7.06,165.07,165.05,2.2417]
[1717413218849,7.06,165.07,165.04,2.2418]
[1717413220580,7.06,165.06,165.04,2.2418]
[1717413223447,7.06,165.06,165.03,2.2419]
[1717413224957,7.06,165.06,165.02,81.31]
[1717413224958,7.06,165.06,165.04,2.2418]
[1717413225157,7.06,165.07,165.04,2.2418]
[1717413225357,7.06,165.08,165.04,2.2418]
[1717413226075,2.2412,165.09,165.04,2.2418]
[1717413226288,7.06,165.08,165.05,36.31]
[1717413226460,2.2411,165.1,165.05,36.31]
[1717413226461,7.06,165.07,165.05,36.31]
[1717413226989,7.06,165.06,165.05,36.31]
[1717413227477,7.06,165.06,165.04,2.2418]
[1717413227780,7.06,165.06,165.04,83.5518]
[1717413228078,7.06,165.07,165.04,38.5518]
[1717413228654,7.06,165.07,165.04,2.2418]
[1717413228863,7.06,165.07,165.05,36.31]
[1717413229768,7.06,165.07,165.04,2.2418]
[1717413230079,7.06,165.07,165.05,36.31]
[1717413234384,2.241,165.11,165.05,36.31]
[1717413234567,7.06,165.1,165.07,36.31]
[1717413234764,7.06,165.09,165.08,45.0]
[1717413236484,2.241,165.11,165.08,45.0]
[1717413236797,7.06,165.1,165.08,45.0]
[1717413237672,13.4427,165.15,165.08,45.0]
[1717413237986,7.06,165.1,165.08,45.0]
[1717413238364,7.06,165.09,165.08,45.0]
[1717413240808,6.5309,165.18,165.1,2.241]
[1717413241089,7.06,165.13,165.1,2.241]
[1717413241490,7.06,165.12,165.09,2.2411]
[1717413241704,2.2404,165.15,165.1,2.241]
[1717413241879,7.06,165.12,165.1,2.241]
[1717413242079,7.06,165.12,165.09,2.2411]
[1717413242278,2.2404,165.15,165.1,2.241]
[1717413242487,7.06,165.12,165.1,2.241]
[1717413242799,7.06,165.13,165.1,2.241]
[1717413243000,11.0108,165.18,165.1,2.241]
[1717413243305,2.2403,165.15,165.1,2.241]
[1717413243488,2.2403,165.16,165.1,2.241]
[1717413243900,2.2403,165.16,165.11,2.2409]
[1717413244103,4.4794,165.2,165.12,2.2407]
[1717413244308,7.06,165.14,165.12,38.5507]
[1717413244506,7.06,165.15,165.12,38.5507]
[1717413244685,7.06,165.14,165.12,36.31]
[1717413245395,7.06,165.14,165.13,81.31]
[1717413246206,2.24,165.18,165.13,81.31]
[1717413246417,7.06,165.15,165.13,83.5506]
[1717413247113,2.2401,165.17,165.13,81.31]
[1717413247311,7.06,165.18,165.15,36.31]
[1717413247604,11.04351678,165.27,165.14,22.4398]
[1717413247605,2.2396,165.21,165.16,81.31]
[1717413247813,7.06,165.19,165.16,81.31]
[1717413248013,7.06,165.18,165.16,81.31]
[1717413248310,7.06,165.17,165.16,81.31]
[1717413248511,7.06,165.18,165.16,81.31]
[1717413252284,2.2397,165.2,165.16,81.31]
[1717413252490,7.06,165.18,165.16,81.31]
[1717413255910,2.2398,165.19,165.15,36.31]
[1717413256126,7.06,165.16,165.15,38.5503]
[1717413256694,2.2397,165.2,165.15,38.5503]
[1717413256895,7.06,165.18,165.15,2.2403]
[1717413257413,7.06,165.16,165.14,83.5504]
[1717413257616,7.06,165.16,165.14,38.5504]
[1717413257817,7.06,165.15,165.14,38.5504]
[1717413258197,7.06,165.15,165.14,2.2404]
[1717413258524,2.2397,165.2,165.15,2.2403]
[1717413258706,7.06,165.17,165.15,2.2403]
[1717413259428,7.06,165.17,165.14,2.2404]
[1717413259731,7.06,165.15,165.13,81.31]
[1717413259946,7.06,165.16,165.14,2.2405]
[1717413260225,2.2398,165.19,165.14,2.2405]
[1717413261407,2.2398,165.2,165.15,2.2403]
[1717413261608,7.06,165.17,165.14,2.2404]
[1717413261923,2.2398,165.19,165.14,2.2404]
[1717413261924,7.06,165.16,165.14,2.2404]
[1717413263521,2.2397,165.2,165.15,2.2403]
[1717413263720,7.06,165.17,165.15,2.2403]
[1717413263921,2.2397,165.2,165.15,2.2403]
[1717413264234,7.06,165.17,165.15,2.2403]
[1717413264442,13.4352,165.24,165.16,2.2402]
[1717413264443,2.2396,165.21,165.16,2.2402]
[1717413264619,7.06,165.19,165.16,2.2402]
[1717413265915,7.06,165.19,165.16,36.31]